bitfinex/quotes_SOLUSD_20241202
["timestamp","ask_amount","ask_price","bid_price","bid_amount"]
[1733129292465,3.8404,224.27,224.15,70.0]
[1733129292776,3.8404,224.33,224.21,15.593]
[1733129292952,3.8404,224.33,224.23,4.443]
[1733129293152,3.8404,224.36,224.24,0.44837226]
[1733129293344,0.5394697,224.42,224.24,0.44837226]
[1733129293345,3.8404,224.38,224.29,4.443]
[1733129293545,3.8404,224.38,224.37,44.61689746]
[1733129293751,3.8404,224.23,224.15,11.1528]
[1733129293967,3.8404,224.23,224.22,44.61689746]
[1733129295246,3.8404,224.19,224.18,44.61689746]
[1733129295273,3.8404,224.14,224.04,11.1582]
[1733129295451,5.0,224.27,223.93,1.1596]
[1733129295452,3.8404,224.04,223.99,0.45055199]
[1733129296917,3.8404,224.04,224.03,44.61689746]
[1733129296929,6.11254119,224.13,223.9,4.443]
[1733129296930,3.8404,223.98,223.9,4.443]
[1733129296957,3.8404,223.98,223.91,0.45203109]
[1733129296965,3.8404,224.0,223.91,0.45203109]
[1733129296970,1.11328074,224.08,223.93,4.443]
[1733129296971,3.8404,223.98,223.93,4.443]
[1733129297063,3.8404,224.03,223.93,4.89498536]
[1733129297274,3.8404,224.01,224.0,44.61689746]
[1733129297779,3.8404,224.06,224.0,44.61689746]
[1733129297980,3.8404,224.06,224.01,4.8942379]
[1733129298275,3.8404,224.05,224.01,4.443]
[1733129298481,3.8404,224.1,224.01,4.443]
[1733129298669,3.8404,224.06,223.96,44.61689746]
[1733129298978,4.95357026,224.09,224.04,44.61689746]
[1733129299322,3.8404,224.06,224.04,44.61689746]
[1733129301477,3.8404,223.92,223.88,49.05989746]
[1733129301666,3.8404,223.92,223.91,44.61689746]
[1733129301876,3.8404,223.92,223.9,44.61689746]
[1733129302387,3.8404,223.92,223.91,44.61689746]
[1733129302561,3.8404,223.92,223.89,4.443]
[1733129302562,3.8404,223.92,223.9,44.61689746]
[1733129302764,3.8404,223.84,223.75,11.1729]
[1733129302988,3.8404,223.81,223.74,44.61689746]
[1733129303363,3.8404,223.84,223.75,0.45382755]
[1733129303564,3.8404,223.86,223.75,0.45382755]
[1733129303761,3.8404,223.83,223.75,0.45382755]
[1733129303983,3.8404,223.85,223.75,0.45382755]
[1733129304160,3.8404,223.89,223.75,0.45382755]
[1733129304364,3.8404,223.98,223.88,44.61689746]
[1733129304560,3.8404,223.98,223.97,44.61689746]
[1733129304763,3.8404,223.98,223.96,44.61689746]
[1733129304976,3.8404,223.98,223.94,4.443]
[1733129304977,3.8404,224.02,223.97,44.61689746]
[1733129305180,3.8404,224.02,223.89,0.45217661]
[1733129305387,12.1816,224.07,223.85,44.61689746]
[1733129305388,3.8404,223.94,223.86,0.4521389]
[1733129305678,3.8404,223.87,223.81,0.45247946]
[1733129306066,1.11379618,223.99,223.81,0.45247946]
[1733129306067,3.8404,223.89,223.86,44.61689746]
[1733129306283,3.8404,223.89,223.88,44.61689746]
[1733129306459,3.8404,223.93,223.88,44.61689746]
[1733129306659,3.8404,223.93,223.92,44.61689746]
[1733129306861,3.8404,223.93,223.88,4.443]
[1733129307073,3.8404,223.94,223.92,44.61689746]
[1733129307282,3.8404,223.94,223.86,4.89563244]
[1733129307664,3.8404,223.92,223.86,4.443]
[1733129307982,3.8404,223.97,223.87,0.45260594]
[1733129308191,3.8404,223.97,223.94,44.61689746]
[1733129308356,4.95385006,224.0,223.96,44.61689746]
[1733129308556,3.8404,224.0,223.88,4.443]
[1733129308759,3.8404,224.0,223.89,0.45171315]
[1733129309168,3.8404,224.03,223.89,0.45171315]
[1733129309377,12.1816,224.07,223.94,74.443]
[1733129309378,3.8404,224.07,223.94,74.443]
[1733129309582,3.8404,224.07,223.95,0.45125094]
[1733129309784,3.8404,224.02,224.01,44.61689746]
[1733129309990,3.8404,224.06,224.01,44.61689746]
[1733129310280,3.8404,224.04,223.96,55.77939746]
[1733129310487,3.8404,224.03,223.96,44.61689746]
[1733129310665,3.8404,224.08,223.98,4.443]
[1733129310867,1.11286134,224.07,223.98,4.443]
[1733129311082,3.8404,224.02,223.99,4.443]
[1733129311495,3.8404,224.02,224.01,44.61689746]
[1733129311867,3.8404,224.07,224.02,4.443]
[1733129312059,3.8404,224.09,224.06,44.61689746]
[1733129312282,3.8404,224.11,224.08,44.61689746]
[1733129312487,3.8404,224.06,224.0,11.1605]
[1733129312991,3.8404,224.08,224.05,44.61689746]
[1733129313167,3.8404,224.13,224.07,89.23379492]
[1733129313374,3.8404,224.15,224.12,44.61689746]
[1733129313687,3.8404,224.15,224.11,44.61689746]
[1733129313888,3.8404,224.14,224.08,4.443]
[1733129314292,3.8404,224.22,224.08,4.89348584]
[1733129314495,3.8404,224.24,224.12,4.443]
[1733129314793,3.8404,224.18,224.15,4.443]
[1733129314984,3.8404,224.2,224.13,0.44938302]
[1733129315169,3.8404,224.17,224.11,0.44967802]
[1733129315467,3.8404,224.14,224.11,0.44967802]
[1733129315894,3.1304,224.12,224.09,44.61689746]
[1733129316177,3.1304,224.12,224.01,4.443]
[1733129316178,3.1304,224.11,224.03,11.1592]
[1733129316378,3.1304,224.08,224.04,0.45056904]
[1733129316587,3.1304,224.09,224.04,0.45056904]
[1733129317089,3.1304,224.09,224.08,44.61689746]
[1733129317393,3.1304,224.05,224.04,44.61689746]
[1733129317798,3.1304,224.01,223.92,11.1642]
[1733129318089,3.1304,223.94,223.89,0.45190679]
[1733129318312,3.1304,223.94,223.89,44.61689746]
[1733129318460,3.1304,223.86,223.84,0.22374431]
[1733129318684,3.1304,223.86,223.81,15.6128]
[1733129318882,3.1304,223.86,223.84,44.61689746]
[1733129319102,3.1304,223.86,223.76,11.62541803]
[1733129319393,3.1304,223.86,223.77,4.443]
[1733129319604,3.1304,223.86,223.78,0.45327852]
[1733129319805,40.39993678,223.96,223.81,5.0]
[1733129320192,44.61689746,223.91,223.84,44.61689746]
[1733129320398,0.66057962,223.9,223.84,44.61689746]
[1733129320597,0.66057962,223.9,223.85,44.61689746]
[1733129320794,0.66057962,223.91,223.87,44.61689746]
[1733129320996,0.66057962,223.91,223.86,44.61689746]
[1733129321383,0.66057962,223.91,223.85,44.61689746]
[1733129321705,0.66057962,223.91,223.87,44.61689746]
[1733129321913,0.66057962,223.92,223.87,44.61689746]
[1733129322208,0.66057962,223.92,223.86,44.61689746]
[1733129322511,0.66057962,223.95,223.9,44.61689746]
[1733129322703,0.66057962,223.95,223.84,44.61689746]
[1733129322889,0.66057962,223.95,223.79,5.0]
[1733129322890,5.0,223.93,223.79,5.0]
[1733129323091,5.0,223.93,223.75,11.173]
[1733129323092,44.61689746,223.89,223.82,44.61689746]
[1733129323415,0.66057962,223.88,223.84,44.61689746]
[1733129323622,85.01683424,223.96,223.75,12.06427161]
[1733129323623,0.66057962,223.9,223.86,44.61689746]
[1733129323808,40.39993678,223.96,223.9,5.0]
[1733129323990,40.39993678,223.96,223.94,44.61689746]
[1733129324315,40.39993678,223.96,223.93,44.61689746]
[1733129324482,0.66057962,224.0,223.92,5.0]
[1733129324687,0.66057962,224.06,223.99,44.61689746]
[1733129324895,0.66057962,224.06,224.0,44.61689746]
[1733129325290,57.08869746,224.07,224.04,44.61689746]
[1733129325291,1.01999834,224.05,224.04,44.61689746]
[1733129325711,1.01999834,224.05,224.04,49.61689746]
[1733129326793,12.9389,224.15,224.11,5.0]
[1733129327117,0.66057962,224.18,224.13,44.61689746]
[1733129327289,1.01999834,224.17,224.14,5.0]
[1733129327707,1.01999834,224.17,224.16,44.61689746]
[1733129327899,1.01999834,224.17,224.14,44.61689746]
[1733129328090,1.01999834,224.17,224.15,5.0]
[1733129328292,1.01999834,224.17,224.15,44.61689746]
[1733129328515,1.01999834,224.17,224.16,44.61689746]
[1733129329797,1.01999834,224.17,224.16,44.61689746]
[1733129330797,12.7414,224.24,224.16,44.61689746]
[1733129331125,13.0199,224.33,224.26,5.0]
[1733129331616,0.66057962,224.32,224.27,44.61689746]
[1733129331921,0.66057962,224.31,224.23,9.443]
[1733129332094,45.27747708,224.32,224.27,5.0]
[1733129332295,13.0199,224.33,224.28,44.61689746]
[1733129332492,0.66057962,224.32,224.28,44.61689746]
[1733129332717,0.66057962,224.32,224.29,44.61689746]
[1733129332895,0.66057962,224.35,224.3,44.61689746]
[1733129333099,0.66057962,224.35,224.31,5.0]
[1733129333417,0.66057962,224.38,224.34,44.61689746]
[1733129334602,0.66057962,224.38,224.31,49.61689746]
[1733129334603,45.27747708,224.38,224.31,49.61689746]
[1733129334807,0.66057962,224.38,224.33,44.61689746]
[1733129335314,0.66057962,224.4,224.37,44.61689746]
[1733129335519,0.66057962,224.4,224.38,44.61689746]
[1733129335811,0.66057962,224.4,224.36,44.61689746]
[1733129335987,0.66057962,224.4,224.33,5.0]
[1733129335988,45.81694678,224.42,224.34,44.61689746]
[1733129336190,44.61689746,224.41,224.34,49.61689746]
[1733129336408,0.66057962,224.4,224.35,44.61689746]
[1733129336614,44.61689746,224.38,224.31,44.61689746]
[1733129336820,0.66057962,224.37,224.32,44.61689746]
[1733129336993,44.61689746,224.38,224.31,44.61689746]
[1733129337192,0.66057962,224.37,224.32,44.61689746]
[1733129337513,0.66057962,224.37,224.29,5.0]
[1733129337694,0.5394697,224.42,224.36,44.61689746]
[1733129337894,1.20004932,224.42,224.37,44.61689746]
[1733129338216,0.66057962,224.41,224.38,44.61689746]
[1733129338418,0.5394697,224.42,224.38,44.61689746]
[1733129338599,0.66057962,224.41,224.38,44.61689746]
[1733129339001,1.20004932,224.42,224.38,44.61689746]
[1733129339195,1.20004932,224.42,224.37,44.61689746]
[1733129339499,0.5394697,224.42,224.41,49.61689746]
[1733129339889,0.5394697,224.42,224.41,44.61689746]
[1733129340090,0.5394697,224.42,224.39,5.0]
[1733129340091,0.5394697,224.42,224.39,49.61689746]
[1733129340312,0.5394697,224.42,224.38,44.61689746]
[1733129340514,0.5394697,224.42,224.31,0.8890032]
[1733129340515,44.61689746,224.41,224.34,44.61689746]
[1733129340717,0.66057962,224.4,224.35,5.0]
[1733129341027,0.5394697,224.42,224.41,5.0]
[1733129341243,0.5394697,224.42,224.41,5.88879076]
[1733129341522,0.66057962,224.57,224.41,54.94868822]
[1733129341708,0.66057962,224.57,224.54,44.61689746]
[1733129341898,0.66057962,224.57,224.53,44.61689746]
[1733129342223,0.66057962,224.57,224.52,44.61689746]
[1733129342403,0.66057962,224.57,224.48,5.0]
[1733129342740,5.0,224.54,224.49,44.61689746]
[1733129343018,5.0,224.51,224.4,44.61689746]
[1733129343210,5.0,224.45,224.39,44.61689746]
[1733129343418,0.66057962,224.44,224.39,44.61689746]
[1733129343720,44.61689746,224.41,224.3,5.0]
[1733129343910,13.13687962,224.4,224.26,5.0]
[1733129344097,13.13687962,224.4,224.31,5.0]
[1733129344098,5.0,224.37,224.31,5.0]
[1733129344300,0.66057962,224.36,224.23,5.0]
[1733129344495,0.66057962,224.36,224.27,5.0]
[1733129344704,0.66057962,224.36,224.29,44.61689746]
[1733129344946,0.66057962,224.36,224.32,49.05989746]
[1733129345113,0.66057962,224.38,224.35,44.61689746]
[1733129345417,0.66057962,224.38,224.18,55.76809746]
[1733129345418,5.0,224.34,224.24,5.0]
[1733129345718,5.0,224.32,224.22,9.443]
[1733129345899,0.66057962,224.31,224.24,5.0]
[1733129346100,5.66057962,224.31,224.22,5.0]
[1733129346303,5.66057962,224.31,224.24,5.0]
[1733129346494,0.66057962,224.31,224.24,5.0]
[1733129346697,0.66057962,224.37,224.31,5.0]
[1733129346899,0.66057962,224.37,224.34,44.61689746]
[1733129347121,0.66057962,224.37,224.36,49.61689746]
[1733129347291,7.2273,224.49,224.29,44.61689746]
[1733129347292,5.66057962,224.46,224.38,5.0]
[1733129347496,5.0,224.41,224.3,5.0]
[1733129347700,0.66057962,224.4,224.3,5.0]
[1733129347912,0.66057962,224.4,224.35,5.0]
[1733129348118,0.66057962,224.43,224.35,5.0]
[1733129348524,0.66057962,224.43,224.39,5.0]
[1733129348731,5.0,224.46,224.41,4.443]
[1733129348900,45.27747708,224.45,224.41,4.443]
[1733129349100,45.27747708,224.45,224.38,44.61689746]
[1733129349101,44.61689746,224.42,224.34,49.61689746]
[1733129349297,5.0,224.39,224.28,5.0]
[1733129349499,5.0,224.35,224.21,5.0]
[1733129349697,1.77467962,224.38,224.21,5.0]
[1733129349698,5.0,224.29,224.21,5.0]
[1733129349936,0.66057962,224.28,224.19,5.0]
[1733129350103,0.66057962,224.31,224.23,5.0]
[1733129350300,0.66057962,224.31,224.21,5.0]
[1733129350513,0.66057962,224.31,224.24,5.0]
[1733129350719,0.66057962,224.31,224.29,44.61689746]
[1733129350917,0.66057962,224.35,224.3,44.61689746]
[1733129351119,0.66057962,224.38,224.34,49.61689746]
[1733129351321,0.66057962,224.39,224.34,5.0]
[1733129351525,0.66057962,224.41,224.36,5.0]
[1733129351714,0.66057962,224.41,224.29,45.50607928]
[1733129351715,0.66057962,224.47,224.42,5.0]
[1733129352025,0.66057962,224.5,224.44,5.0]
[1733129352203,0.66057962,224.55,224.46,5.0]
[1733129352524,0.66057962,224.55,224.49,44.61689746]
[1733129352721,0.66057962,224.55,224.4,44.61689746]
[1733129352722,0.66057962,224.55,224.51,44.61689746]
[1733129352932,0.66057962,224.55,224.52,44.61689746]
[1733129353230,0.66057962,224.58,224.54,44.61689746]
[1733129353526,45.27747708,224.58,224.5,49.61689746]
[1733129353709,45.27747708,224.58,224.52,5.0]
[1733129354030,0.66057962,224.59,224.54,5.0]
[1733129354226,0.66057962,224.62,224.56,5.0]
[1733129354527,0.66057962,224.62,224.52,5.0]
[1733129354736,0.66057962,224.62,224.4,44.61689746]
[1733129354737,0.66057962,224.62,224.54,5.0]
[1733129354902,0.66057962,224.63,224.58,5.0]
[1733129355105,0.66057962,224.63,224.59,44.61689746]
[1733129355310,1.20004932,224.65,224.62,44.61689746]
[1733129355526,1.20004932,224.65,224.6,49.61689746]
[1733129355734,1.20004932,224.65,224.61,44.61689746]
[1733129356035,5.0,224.62,224.5,5.0]
[1733129356236,0.66057962,224.61,224.53,5.0]
[1733129356434,0.66057962,224.61,224.57,44.61689746]
[1733129356739,0.66057962,224.63,224.58,44.61689746]
[1733129356933,0.66057962,224.63,224.6,44.61689746]
[1733129357140,0.5394697,224.65,224.62,44.61689746]
[1733129357512,0.5394697,224.65,224.64,5.0]
[1733129357715,0.5394697,224.65,224.64,49.61689746]
[1733129358714,0.5394697,224.65,224.62,5.0]
[1733129359036,44.61689746,224.64,224.59,5.0]
[1733129359210,0.5394697,224.65,224.51,44.61689746]
[1733129359211,44.61689746,224.6,224.51,5.0]
[1733129359531,5.0,224.63,224.56,5.0]
[1733129359750,0.66057962,224.62,224.58,5.0]
[1733129359927,1.20004932,224.65,224.58,5.0]
[1733129360233,0.5394697,224.65,224.63,5.0]
[1733129360614,0.5394697,224.65,224.63,49.61689746]
[1733129360825,44.61689746,224.7,224.63,49.61689746]
[1733129361118,44.61689746,224.72,224.66,5.0]
[1733129361332,44.61689746,224.76,224.69,49.61689746]
[1733129361531,50.0318,224.78,224.67,49.61689746]
[1733129361532,44.61689746,224.74,224.67,49.61689746]
[1733129361840,44.61689746,224.73,224.68,5.0]
[1733129362038,44.61689746,224.74,224.68,5.0]
[1733129362527,45.72909746,224.77,224.71,44.61689746]
[1733129362837,45.72889746,224.82,224.75,44.61689746]
[1733129363136,44.61689746,224.79,224.74,5.0]
[1733129363339,44.61689746,224.8,224.74,49.61689746]
[1733129363642,44.61689746,224.81,224.75,5.0]
[1733129364009,44.61689746,224.84,224.78,49.61689746]
[1733129364208,44.61689746,224.84,224.78,5.0]
[1733129364412,44.61689746,224.87,224.81,5.0]
[1733129364641,0.5394697,224.88,224.83,5.0]
[1733129364939,44.61689746,224.86,224.81,5.0]
[1733129365122,44.61689746,224.83,224.76,44.61689746]
[1733129365322,221.9511697,224.88,224.77,5.0]
[1733129365832,5.0,224.83,224.75,5.0]
[1733129366035,5.0,224.83,224.71,5.0]
[1733129366218,44.61689746,224.75,224.69,5.0]
[1733129366417,44.61689746,224.8,224.73,44.61689746]
[1733129366621,44.61689746,224.83,224.78,5.0]
[1733129367338,1.6511697,224.88,224.8,49.61689746]
[1733129367339,44.61689746,224.86,224.8,49.61689746]
[1733129367516,0.5394697,224.88,224.82,5.0]
[1733129367517,44.61689746,224.87,224.82,5.0]
[1733129367714,0.5394697,224.88,224.83,5.0]
[1733129367921,44.61689746,224.89,224.88,19.4605303]
[1733129368122,45.72849746,224.89,224.88,15.5954303]
[1733129368329,45.72849746,224.89,224.88,3.4922303]
[1733129368531,45.72849746,224.89,224.88,0.6082303]
[1733129368732,45.72849746,224.89,224.88,3.03e-05]
[1733129369048,5.0,224.83,224.74,5.0]
[1733129369339,5.0,224.72,224.63,5.0]
[1733129369514,44.61689746,224.67,224.61,5.0]
[1733129369713,5.0,224.74,224.61,5.0]
[1733129369714,5.0,224.74,224.61,49.61689746]
[1733129369942,5.0,224.74,224.62,5.0]
[1733129370129,18.1552,224.76,224.62,5.0]
[1733129370335,5.0,224.74,224.62,5.0]
[1733129370643,5.0,224.7,224.58,5.0]
[1733129370937,44.61689746,224.62,224.55,5.0]
[1733129371243,1.1128,224.65,224.55,5.0]
[1733129371244,44.61689746,224.63,224.55,49.61689746]
[1733129371448,44.61689746,224.62,224.55,49.61689746]
[1733129371617,44.61689746,224.64,224.58,5.0]
[1733129371822,44.61689746,224.67,224.62,5.0]
[1733129372036,44.61689746,224.68,224.62,5.0]
[1733129372248,44.61689746,224.73,224.66,5.0]
[1733129372538,32.1591,224.78,224.7,5.0]
[1733129372747,44.61689746,224.75,224.7,5.0]
[1733129373047,44.61689746,224.74,224.7,5.0]
[1733129373252,44.61689746,224.77,224.7,49.61689746]
[1733129373556,44.61689746,224.74,224.7,5.0]
[1733129373850,1.1122,224.77,224.71,5.0]
[1733129374029,44.61689746,224.75,224.69,49.61689746]
[1733129374350,14.1108,224.82,224.73,5.0]
[1733129374638,5.0,224.81,224.68,5.0]
[1733129374844,5.0,224.81,224.71,4.443]
[1733129375225,1.112,224.8,224.71,4.443]
[1733129375427,44.61689746,224.72,224.71,4.443]
[1733129375927,44.61689746,224.73,224.71,4.443]
[1733129376136,44.61689746,224.76,224.71,9.443]
[1733129376329,44.61689746,224.75,224.71,9.443]
[1733129376526,44.61689746,224.74,224.71,4.443]
[1733129376747,44.61689746,224.72,224.71,4.443]
[1733129376934,44.61689746,224.72,224.68,4.443]
[1733129377137,44.61689746,224.74,224.68,4.443]
[1733129377346,44.61689746,224.76,224.7,4.443]
[1733129377525,12.9988,224.82,224.7,4.443]
[1733129377526,44.61689746,224.74,224.7,4.443]
[1733129378242,44.61689746,224.71,224.7,4.443]
[1733129378444,44.61689746,224.71,224.64,4.443]
[1733129378647,44.61689746,224.69,224.67,4.443]
[1733129378846,44.61689746,224.72,224.69,4.443]
[1733129379155,44.61689746,224.7,224.69,4.443]
[1733129379329,44.61689746,224.7,224.62,5.0]
[1733129379530,1.1123,224.74,224.66,4.443]
[1733129379739,44.61689746,224.71,224.67,5.0]
[1733129379943,44.61689746,224.7,224.63,49.61689746]
[1733129380147,1.1123,224.74,224.61,5.0]
[1733129380346,44.61689746,224.68,224.65,5.0]
[1733129380559,144.9242,224.79,224.67,5.0]
[1733129380854,5.0,224.77,224.67,5.0]
[1733129381349,5.0,224.71,224.62,5.0]
[1733129381542,44.61689746,224.66,224.63,4.443]
[1733129381737,44.61689746,224.65,224.61,4.443]
[1733129384335,44.61689746,224.59,224.57,5.0]
[1733129384646,1.1126,224.69,224.6,5.0]
[1733129385351,1.1126,224.69,224.62,5.0]
[1733129385654,44.61689746,224.7,224.66,5.0]
[1733129385849,44.61689746,224.69,224.66,5.0]
[1733129386233,44.61689746,224.72,224.69,5.0]
[1733129386843,44.61689746,224.72,224.71,5.0]
[1733129387157,44.61689746,224.73,224.72,4.452]
[1733129387363,44.61689746,224.76,224.73,5.0]
[1733129387534,44.61689746,224.77,224.75,5.0]
[1733129387856,44.61689746,224.8,224.77,5.0]
[1733129388159,44.61689746,224.79,224.78,4.452]
[1733129388861,44.61689746,224.82,224.79,9.452]
[1733129389152,44.61689746,224.85,224.81,4.452]
[1733129389358,5.0,224.91,224.81,9.452]
[1733129389562,137.7,224.9,224.81,9.452]
[1733129389853,44.61689746,224.83,224.81,9.452]
[1733129390156,44.61689746,224.83,224.81,5.0]
[1733129390659,44.61689746,224.87,224.83,5.0]
[1733129390948,44.61689746,224.87,224.84,5.0]
[1733129391153,5.0,224.9,224.84,5.0]
[1733129391452,8.3343,224.93,224.8,5.0]
[1733129391653,44.61689746,224.81,224.78,5.0]
[1733129391954,44.61689746,224.8,224.78,5.0]
[1733129392266,44.61689746,224.82,224.79,5.0]
[1733129392553,44.61689746,224.82,224.81,5.0]
[1733129392861,44.61689746,224.82,224.79,5.0]
[1733129393060,44.61689746,224.8,224.79,5.0]
[1733129393756,44.61689746,224.82,224.79,5.0]
[1733129393963,44.61689746,224.82,224.81,5.0]
[1733129394453,44.61689746,224.86,224.83,5.0]
[1733129394657,44.61689746,224.87,224.85,5.0]
[1733129395138,44.61689746,224.88,224.87,5.0]
[1733129395454,44.61689746,224.9,224.87,5.0]
[1733129396042,44.61689746,224.95,224.93,5.0]
[1733129396241,1.1111,225.01,224.93,5.0]
[1733129396242,44.61689746,224.96,224.93,5.0]
[1733129396445,44.61689746,224.96,224.95,5.0]
[1733129396659,44.61689746,224.96,224.93,5.0]
[1733129396963,44.61689746,224.96,224.95,5.0]
[1733129398649,44.61689746,224.98,224.97,5.0]
[1733129398865,44.61689746,224.98,224.87,5.0]
[1733129398866,44.61689746,224.98,224.95,5.0]
[1733129399043,44.61689746,224.96,224.92,5.0]
[1733129399243,44.61689746,224.93,224.92,5.0]
[1733129399955,44.61689746,224.93,224.92,9.452]
[1733129400266,44.61689746,224.93,224.92,4.452]
[1733129400440,44.61689746,224.93,224.91,5.0]
[1733129400764,44.61689746,224.94,224.92,5.0]
[1733129400955,44.61689746,224.93,224.92,5.0]
[1733129401265,138.811,225.02,224.96,5.0]
[1733129401463,44.61689746,224.97,224.95,5.0]
[1733129401839,44.61689746,224.96,224.94,4.452]
[1733129402035,44.61689746,224.95,224.93,5.0]
[1733129402252,44.61689746,224.94,224.93,5.0]
[1733129402450,44.61689746,224.97,224.95,5.0]
[1733129402945,1.111,225.02,224.97,5.0]
[1733129402946,44.61689746,224.99,224.97,5.0]
[1733129403150,44.61689746,225.01,224.99,5.0]
[1733129403350,44.25689746,225.02,225.01,5.0]
[1733129404073,44.61689746,225.03,225.01,5.0]
[1733129404272,44.61689746,225.05,225.03,5.0]
[1733129404774,44.61689746,225.04,225.03,5.0]
[1733129405067,44.61689746,225.05,225.03,5.0]
[1733129405442,44.61689746,225.09,225.07,5.0]
[1733129405648,44.61689746,225.09,225.08,5.0]
[1733129405951,44.61689746,225.1,225.06,9.452]
[1733129406264,44.61689746,225.07,225.04,5.0]
[1733129406969,44.61689746,225.08,225.04,5.0]
[1733129407164,44.61689746,225.09,225.04,5.0]
[1733129407547,44.61689746,225.09,225.06,9.452]
[1733129407945,0.5394697,225.11,225.09,5.0]
[1733129408982,0.5394697,225.11,225.1,4.452]
[1733129409468,46.26686716,225.11,225.06,5.0]
[1733129409669,44.61689746,225.09,225.02,49.61689746]
[1733129409870,44.61689746,225.08,225.02,5.0]
[1733129410043,44.61689746,225.07,225.02,5.0]
[1733129410245,44.61689746,225.08,225.04,5.0]
[1733129410461,44.61689746,225.09,225.06,5.0]
[1733129410861,45.72749746,225.09,225.06,5.0]
[1733129412279,1.1106,225.09,225.08,5.0]
[1733129412581,0.5394697,225.11,225.1,5.0]
[1733129413468,0.5394697,225.11,225.1,9.452]
[1733129413646,46.26686716,225.11,225.07,0.3347]
[1733129414247,46.26686716,225.11,225.09,0.3347]
[1733129414453,1.6499697,225.11,225.09,0.3347]
[1733129414761,0.5394697,225.11,225.09,4.7867]
[1733129415749,0.5394697,225.11,225.1,4.452]
[1733129416163,0.5394697,225.11,225.1,49.06889746]
[1733129417574,0.5394697,225.11,225.1,31.56205775]
[1733129418283,0.5394697,225.11,225.1,38.58699]
[1733129420001,1.1099,225.23,225.19,0.3347]
[1733129420002,27.11005775,225.22,225.19,0.3347]
[1733129420193,27.11005775,225.22,225.21,0.3347]
[1733129420392,27.11005775,225.22,225.17,0.3347]
[1733129420579,27.11005775,225.21,225.19,0.3347]
[1733129420767,27.11005775,225.22,225.19,0.3347]
[1733129420959,1.1099,225.23,225.22,0.3347]
[1733129421171,28.21995775,225.23,225.2,0.3347]
[1733129421378,27.11005775,225.22,225.2,0.3347]
[1733129421573,28.21995775,225.23,225.2,0.3347]
[1733129421770,28.21995775,225.23,225.17,4.452]
[1733129421771,28.21995775,225.23,225.22,0.3347]
[1733129422183,27.11005775,225.24,225.22,0.3347]
[1733129422367,1.1097,225.27,225.26,0.3347]
[1733129423182,27.11005775,225.33,225.26,27.11005775]
[1733129423357,27.11005775,225.34,225.27,4.452]
[1733129423560,28.21935775,225.36,225.29,31.56205775]
[1733129423960,1.1093,225.36,225.3,31.56205775]
[1733129424589,1.1093,225.36,225.3,4.452]
[1733129424868,27.11005775,225.38,225.3,31.56205775]
[1733129425073,27.11005775,225.39,225.33,4.452]
[1733129425473,1.1089,225.43,225.34,27.11005775]
[1733129425683,43.95378603,225.4,225.33,43.95378603]
[1733129425876,43.95378603,225.39,225.32,43.95378603]
[1733129426081,43.95378603,225.38,225.32,4.452]
[1733129426787,43.95378603,225.39,225.33,4.452]
[1733129427171,1.1089,225.43,225.35,4.452]
[1733129427379,43.95378603,225.41,225.35,4.452]
[1733129427582,1.1089,225.43,225.35,48.40578603]
[1733129427583,43.95378603,225.42,225.35,48.40578603]
[1733129427803,43.95378603,225.41,225.35,4.452]
[1733129428169,43.95378603,225.42,225.36,4.452]
[1733129428694,43.95378603,225.42,225.29,5.88520909]
[1733129428695,43.95378603,225.44,225.37,48.40578603]
[1733129428868,43.95378603,225.45,225.39,4.452]
[1733129429694,43.95378603,225.46,225.39,48.40578603]
[1733129430074,45.06248603,225.47,225.4,43.95378603]
[1733129430274,43.95378603,225.48,225.41,43.95378603]
[1733129430689,43.95378603,225.49,225.43,4.452]
[1733129431797,43.95378603,225.5,225.43,48.40578603]
[1733129431995,43.95378603,225.44,225.38,4.452]
[1733129432167,43.95378603,225.5,225.38,43.95378603]